bitfinex-derivatives/quotes_SOLF0:USTF0_20251201
["timestamp","ask_amount","ask_price","bid_price","bid_amount"]
[1764601361452,0.05656306,125.91,125.86,3.14]
[1764601362557,7.1503,125.89,125.87,3.19120756]
[1764601362949,7.1503,125.89,125.87,0.05120756]
[1764601364852,111.2302,125.89,125.84,3.14]
[1764601365856,0.05295792,125.88,125.85,0.05807426]
[1764601366051,27.56,125.87,125.85,0.05807426]
[1764601366951,34.7119,125.87,125.85,3.19807426]
[1764601367354,0.05295792,125.88,125.85,3.19807426]
[1764601368157,111.1744,125.95,125.85,3.19807426]
[1764601368351,27.56,125.94,125.85,3.14]
[1764601368551,7.1491,125.92,125.86,10.2918]
[1764601369053,0.05232466,125.9,125.88,3.19541759]
[1764601370155,0.05232466,125.9,125.88,0.05541759]
[1764601370357,0.05232466,125.9,125.88,3.23541759]
[1764601370664,0.05232466,125.9,125.88,0.05541759]
[1764601372056,7.20212466,125.9,125.88,3.23541759]
[1764601372553,0.00232466,125.9,125.88,3.23541759]
[1764601372761,111.1607,125.97,125.89,3.18]
[1764601372957,124.27886135,126.0,125.89,3.18]
[1764601373162,27.58,125.99,125.9,3.18]
[1764601373358,138.7212,125.99,125.92,10.3283]
[1764601373563,111.1505,125.98,125.92,3.18]
[1764601373757,111.1505,125.98,125.94,0.05684607]
[1764601373758,0.05605691,125.97,125.94,0.05684607]
[1764601373955,0.05605691,125.97,125.94,3.23684607]
[1764601374356,111.0895,126.05,125.94,3.23684607]
[1764601374561,27.58,126.04,125.96,3.18]
[1764601374755,2.92218865,126.05,125.96,3.18]
[1764601374955,27.58,126.04,125.96,3.18]
[1764601375157,27.58,126.04,125.98,3.18]
[1764601375460,0.05581774,126.02,126.0,0.06025091]
[1764601376258,27.56,126.01,126.0,0.06025091]
[1764601376454,7.1442,126.0,125.95,3.18]
[1764601376655,27.56,126.01,125.95,3.18]
[1764601376857,34.7036,126.01,125.95,3.18]
[1764601377463,0.05202173,125.99,125.97,0.05632509]
[1764601377766,0.05202173,125.99,125.97,0.05162295]
[1764601377965,0.05202173,125.99,125.97,3.23162295]
[1764601378261,0.05202173,125.99,125.97,0.05162295]
[1764601378463,27.61202173,125.99,125.97,0.05162295]
[1764601380865,27.56,125.98,125.97,0.05162295]
[1764601381765,27.56,125.98,125.9,3.18]
[1764601382061,111.1618,125.97,125.9,3.18]
[1764601382366,7.1479,125.94,125.87,3.18]
[1764601382564,111.1692,125.96,125.89,3.23622423]
[1764601382565,0.05370266,125.92,125.89,3.23622423]
[1764601382765,7.1493,125.91,125.89,0.05622423]
[1764601383361,7.1493,125.91,125.82,118.60221678]
[1764601383362,7.1505,125.89,125.82,10.50041678]
[1764601383566,27.56,125.88,125.82,3.18]
[1764601384261,7.1517,125.87,125.82,3.18]
[1764601384460,0.05496136,125.86,125.83,3.23426506]
[1764601385271,27.56,125.91,125.84,3.18]
[1764601386159,27.56,125.91,125.82,7.32041678]
[1764601386160,111.186,125.94,125.85,3.18]
[1764601386461,111.186,125.94,125.88,3.23980863]
[1764601386462,0.05271298,125.91,125.88,3.23980863]
[1764601387463,0.00271298,125.91,125.88,3.23980863]
[1764601388466,7.1472,125.95,125.9,3.18]
[1764601388675,138.7049,125.99,125.9,3.18]
[1764601388859,7.1457,125.98,125.92,3.18]
[1764601389265,34.7057,125.98,125.92,3.18]
[1764601389464,0.05785216,125.96,125.94,3.2399006]
[1764601390267,0.05785216,125.96,125.94,0.0599006]
[1764601391170,0.05785216,125.96,125.94,3.2399006]
[1764601391466,0.05785216,125.96,125.94,0.0599006]
[1764601391666,0.05785216,125.96,125.89,3.18]
[1764601392073,7.20435216,125.96,125.89,3.18]
[1764601392273,0.05785216,125.96,125.89,3.18]
[1764601392476,8.46889152,125.96,125.89,3.18]
[1764601392869,8.46889152,125.96,125.91,0.05974584]
[1764601393365,122.55565348,125.96,125.91,0.05974584]
[1764601393675,8.41103936,125.93,125.85,3.18]
[1764601393869,138.8038,125.92,125.82,10.50041678]
[1764601394072,8.41103936,125.9,125.82,3.18]
[1764601394272,8.41103936,125.9,125.83,7.1536]
[1764601394472,8.41103936,125.9,125.83,10.3336]
[1764601394674,0.05278704,125.88,125.85,0.05281468]
[1764601394983,0.05278704,125.88,125.85,3.23281468]
[1764601395578,0.05278704,125.88,125.85,0.05281468]
[1764601396176,27.67278704,125.88,125.85,0.05281468]
[1764601396577,0.05278704,125.88,125.85,0.05281468]
[1764601397179,0.05278704,125.88,125.85,3.23281468]
[1764601398482,8.41103936,125.95,125.86,3.18]
[1764601398681,27.6,125.96,125.86,3.18]
[1764601398879,7.1475,125.94,125.87,10.3311]
[1764601399685,0.06073462,125.92,125.89,3.23776504]
[1764601402187,7.20943462,125.92,125.89,0.05776504]
[1764601403281,7.20943462,125.92,125.89,3.31776504]
[1764601405080,7.20943462,125.92,125.89,0.05776504]
[1764601405388,0.06073462,125.92,125.89,0.05776504]
[1764601405594,111.2145,125.91,125.84,3.26]
[1764601405785,111.2145,125.91,125.81,7.32041678]
[1764601405987,111.2145,125.91,125.81,3.26]
[1764601405988,119.64103936,125.89,125.81,3.26]
[1764601406297,27.6,125.88,125.82,3.26]
[1764601406496,0.05217954,125.86,125.84,0.05930652]
[1764601408291,7.1525,125.85,125.84,0.05930652]
[1764601410094,0.05217954,125.86,125.79,3.27]
[1764601410095,111.30887954,125.86,125.79,3.27]
[1764601410288,111.2476,125.87,125.79,3.27]
[1764601410487,111.2656,125.85,125.79,3.27]
[1764601410792,7.1544,125.82,125.79,3.27]
[1764601410989,119.67663936,125.85,125.79,3.27]
[1764601411186,0.06007712,125.83,125.81,3.32916228]
[1764601412993,0.06007712,125.83,125.81,0.05916228]
[1764601413192,0.06007712,125.83,125.81,3.32916228]
[1764601414487,111.2252,125.9,125.81,3.32916228]
[1764601414695,8.41103936,125.92,125.83,3.27]
[1764601414894,111.1907,125.94,125.83,3.27]
[1764601415193,27.6,125.92,125.84,3.27]
[1764601415393,111.1805,125.95,125.86,3.27]
[1764601415594,0.05976998,125.92,125.89,3.32390548]
[1764601415896,0.05976998,125.92,125.89,3.32326838]
[1764601416294,0.05976998,125.92,125.89,0.05326838]
[1764601416498,111.26426998,125.92,125.89,0.05326838]
[1764601417200,0.05976998,125.92,125.89,0.05326838]
[1764601417691,27.65976998,125.92,125.89,0.05326838]
[1764601417895,0.05976998,125.92,125.89,0.05326838]
[1764601418096,27.65976998,125.92,125.89,3.32326838]
[1764601418398,27.65976998,125.92,125.89,0.05326838]
[1764601418596,138.86126998,125.92,125.89,0.05326838]
[1764601419902,7.1493,125.91,125.89,0.05326838]
[1764601420104,7.1493,125.91,125.89,3.32326838]
[1764601420799,0.05976998,125.92,125.89,3.32326838]
[1764601420994,0.05976998,125.92,125.83,129.4445475]
[1764601420995,111.2224,125.9,125.83,7.32041678]
[1764601421200,111.25,125.87,125.82,3.27]
[1764601421405,114.21363264,125.87,125.79,3.27]
[1764601421800,7.1532,125.84,125.79,3.27]
[1764601422000,27.62,125.84,125.79,3.27]
[1764601422197,0.05669199,125.83,125.8,0.06002345]
[1764601422401,7.1548,125.81,125.8,0.06002345]
[1764601422605,0.05669199,125.83,125.77,3.27]
[1764601422606,111.2919,125.82,125.77,3.27]
[1764601422807,27.62,125.81,125.77,3.27]
[1764601423305,7.1559,125.8,125.77,3.27]
[1764601423707,7.21302274,125.8,125.77,3.3221453]
[1764601424009,7.21302274,125.8,125.77,0.0521453]
[1764601424805,34.83302274,125.8,125.77,3.3221453]
[1764601425001,34.83302274,125.8,125.77,0.0521453]
[1764601425314,7.1562,125.79,125.77,0.0521453]
[1764601426611,34.7762,125.79,125.77,0.0521453]
[1764601427100,7.1562,125.79,125.77,0.0521453]
[1764601427301,27.6,125.78,125.77,0.0521453]
[1764601427709,27.62,125.78,125.77,0.0521453]
[1764601428015,7.1562,125.79,125.77,0.0521453]
[1764601429009,34.7562,125.79,125.77,0.0521453]
[1764601429809,0.05712274,125.8,125.77,3.3221453]
[1764601430211,0.05712274,125.8,125.77,0.0521453]
[1764601430716,7.1562,125.79,125.77,0.0521453]
[1764601431113,27.62,125.78,125.77,0.0521453]
[1764601431607,27.62,125.78,125.76,4.84868062]
[1764601431608,7.1571,125.77,125.76,2.77407462]
[1764601431915,27.62,125.78,125.76,2.77407462]
[1764601432718,27.62,125.79,125.76,6.16062133]
[1764601433814,34.7761,125.79,125.76,2.81062133]
[1764601434013,0.05712274,125.8,125.76,6.16062133]
[1764601434316,27.62,125.79,125.76,6.16062133]
[1764601434906,27.6,125.79,125.76,6.16062133]
[1764601436313,27.6,125.79,125.76,2.81062133]
[1764601436916,7.1566,125.78,125.76,2.81062133]
[1764601437614,27.6,125.77,125.76,2.81062133]
[1764601438014,27.6,125.77,125.76,0.03654671]
[1764601438216,140.5365,125.77,125.69,3.35]
[1764601438415,138.9365,125.77,125.69,3.35]
[1764601438916,7.1589,125.74,125.69,3.35]
[1764601439117,27.65831533,125.73,125.69,3.35]
[1764601439620,0.05831533,125.73,125.69,3.35]
[1764601439822,7.21781533,125.73,125.69,3.35]
[1764601440118,0.05831533,125.73,125.66,3.35]
[1764601440319,7.1619,125.69,125.66,3.35]
[1764601440520,7.21845835,125.69,125.66,3.35]
[1764601440719,0.05655835,125.69,125.66,3.35]
[1764601441014,111.3561,125.75,125.66,3.35]
[1764601441015,111.352,125.75,125.66,7.32041678]
[1764601441218,111.3708,125.73,125.66,3.35]
[1764601441425,27.62,125.72,125.66,3.35]
[1764601441619,7.1608,125.71,125.67,3.35]
[1764601441820,0.05777017,125.7,125.68,3.40655835]
[1764601442017,0.05777017,125.7,125.68,0.05655835]
[1764601442922,0.05777017,125.7,125.68,3.40655835]
[1764601444017,0.05777017,125.7,125.68,0.05655835]
[1764601445319,0.05777017,125.7,125.68,3.40655835]
[1764601449815,111.3232,125.79,125.68,114.81695835]
[1764601450021,138.9232,125.79,125.69,3.35]
[1764601450213,111.3248,125.78,125.69,3.35]
[1764601450424,7.1578,125.76,125.69,3.35]
[1764601450826,0.05975,125.74,125.72,3.35]
[1764601451622,0.05975,125.74,125.71,0.05800536]
[1764601451826,139.04275,125.74,125.71,0.05800536]
[1764601452726,7.1596,125.73,125.71,0.05800536]
[1764601453329,34.7796,125.73,125.71,0.05800536]
[1764601453829,0.05975,125.74,125.71,3.40800536]
[1764601454017,0.05975,125.74,125.71,0.05800536]
[1764601455126,7.1594,125.73,125.71,0.05800536]
[1764601456127,111.42185,125.74,125.65,3.35]
[1764601456128,7.1622,125.68,125.65,3.35]
[1764601456324,139.0094,125.71,125.65,3.35]
[1764601456633,27.62,125.71,125.65,3.35]
[1764601456941,111.3964,125.7,125.67,0.05297749]
[1764601457134,111.4354,125.66,125.59,3.35]
[1764601457322,27.62,125.65,125.59,3.35]
[1764601458231,0.05439733,125.63,125.6,3.35]
[1764601459225,0.05439733,125.63,125.6,10.5167]
[1764601459426,0.05439733,125.63,125.61,3.35]
[1764601460230,7.1635,125.66,125.62,3.25]
[1764601460529,139.0298,125.69,125.62,3.25]
[1764601461235,0.05872686,125.67,125.64,0.05250415]
[1764601461630,0.05872686,125.67,125.64,3.30250415]
[1764601462433,7.1615,125.7,125.64,3.30250415]
[1764601462739,7.1615,125.7,125.64,3.25]
[1764601463339,7.1615,125.7,125.65,3.25]
[1764601463536,0.0600662,125.68,125.67,3.25]
[1764601463835,0.0600662,125.68,125.66,3.30227856]
[1764601464238,0.0600662,125.68,125.66,0.05227856]
[1764601464536,7.2223662,125.68,125.66,0.05227856]
[1764601464931,0.0600662,125.68,125.66,3.30227856]
[1764601465330,7.1598,125.73,125.66,3.30227856]
[1764601465840,7.1598,125.73,125.66,10.46517856]
[1764601466232,0.06111475,125.71,125.67,3.25]
[1764601466439,0.06111475,125.71,125.68,0.0604907]
[1764601466634,0.05352143,125.71,125.68,0.05671783]
[1764601467338,7.21452143,125.71,125.68,0.05671783]
[1764601467537,0.05352143,125.71,125.68,0.05671783]
[1764601468342,7.1612,125.7,125.68,0.05671783]
[1764601468741,27.62,125.69,125.68,0.05671783]
[1764601470042,27.62,125.69,125.61,10.5358]
[1764601470236,2.87093655,125.7,125.62,3.37]
[1764601470435,37.03961398,125.72,125.62,3.37]
[1764601470436,27.62,125.69,125.62,3.37]
[1764601471031,0.05831789,125.67,125.65,3.37]
[1764601471842,0.05831789,125.67,125.66,3.37]
[1764601473436,0.05831789,125.67,125.64,0.05854458]
[1764601473841,0.05831789,125.67,125.64,3.42854458]
[1764601475541,0.05831789,125.67,125.64,0.05854458]
[1764601476440,0.05831789,125.67,125.64,3.42854458]
[1764601477635,111.48341789,125.67,125.64,0.05854458]
[1764601478030,111.48341789,125.67,125.55,10.71460734]
[1764601478031,111.4576,125.63,125.55,10.71460734]
[1764601478236,30.48075099,125.63,125.56,3.37]
[1764601478443,2.86075099,125.63,125.56,3.37]
[1764601478644,27.62,125.64,125.56,3.37]
[1764601479233,111.4122,125.69,125.59,3.37]
[1764601479546,2.86309642,125.69,125.63,0.05496419]
[1764601479846,0.05291892,125.65,125.63,3.42496419]
[1764601480049,0.05329087,125.65,125.63,3.42932724]
[1764601480243,10.00081865,125.71,125.64,3.37]
[1764601480452,7.1609,125.71,125.64,3.37]
[1764601481148,0.05824694,125.69,125.67,3.37]
[1764601481745,0.05824694,125.69,125.66,0.05039509]
[1764601482348,0.05824694,125.69,125.66,3.42039509]
[1764601484349,0.05824694,125.69,125.66,0.05039509]
[1764601484553,7.22014694,125.69,125.66,0.05039509]
[1764601484955,7.22014694,125.69,125.66,3.42039509]
[1764601485644,7.22014694,125.69,125.66,0.05039509]
[1764601486452,7.22014694,125.69,125.66,3.42039509]
[1764601486958,0.05824694,125.69,125.66,3.42039509]
[1764601489354,0.05824694,125.69,125.67,3.37]
[1764601491362,0.05824694,125.69,125.66,7.39500243]
[1764601491563,0.05824694,125.69,125.66,3.35039509]
[1764601492669,0.05824694,125.69,125.66,0.05039509]
[1764601492957,0.05824694,125.69,125.66,3.35039509]
[1764601493566,7.22004694,125.69,125.66,3.35039509]
[1764601494268,7.22004694,125.69,125.66,0.05039509]
[1764601494565,7.1623,125.68,125.66,0.05039509]
[1764601495353,27.67824694,125.69,125.66,0.05039509]
[1764601495759,0.05824694,125.69,125.68,3.3]
[1764601497167,0.05824694,125.69,125.66,7.39500243]
[1764601497469,0.05824694,125.69,125.67,3.3]
[1764601498365,0.05824694,125.69,125.66,3.35039509]
[1764601499970,0.05824694,125.69,125.67,3.3]
[1764601500669,0.05824694,125.69,125.67,10.4624]
[1764601500973,0.05824694,125.69,125.68,3.3]
[1764601502274,0.05824694,125.69,125.66,3.35039509]
[1764601502477,0.05824694,125.69,125.66,0.05039509]
[1764601502776,111.4154,125.68,125.61,7.34460734]
[1764601502978,111.4225,125.67,125.61,3.3]
[1764601503179,139.0425,125.67,125.61,3.3]
[1764601503374,111.4154,125.68,125.61,3.3]
[1764601503570,111.4088,125.69,125.61,3.3]
[1764601503770,0.05206937,125.66,125.65,3.3]
[1764601504172,111.3695,125.73,125.65,4.9]
[1764601504366,111.3695,125.73,125.65,3.3]
[1764601504770,7.1605,125.71,125.67,3.3]
[1764601505376,0.05642642,125.7,125.68,3.36097243]
[1764601506973,7.21762642,125.7,125.68,0.06097243]
[1764601507180,27.62,125.69,125.68,0.06097243]
[1764601507479,111.4215,125.68,125.61,3.3]
[1764601508376,7.1644,125.65,125.63,0.05035243]
[1764601508580,0.05229981,125.66,125.63,3.35035243]
[1764601508777,0.05229981,125.66,125.63,0.05035243]
[1764601509374,7.21599981,125.66,125.63,0.05035243]
[1764601509582,7.21599981,125.66,125.63,3.35035243]
[1764601510084,7.1641,125.65,125.63,0.05035243]
[1764601510882,0.05229981,125.66,125.63,0.05035243]
[1764601511484,7.21569981,125.66,125.63,0.05035243]
[1764601511983,0.05229981,125.66,125.63,0.05035243]
[1764601512180,7.21569981,125.66,125.63,0.05035243]
[1764601513183,0.05229981,125.66,125.63,3.35035243]
[1764601514384,27.62,125.75,125.67,10.4626]
[1764601514684,27.62,125.75,125.67,3.3]
[1764601515285,0.05395325,125.72,125.7,0.05852523]
[1764601515883,7.21405325,125.72,125.7,0.05852523]
[1764601516284,8.81405325,125.72,125.7,0.05852523]
[1764601516685,7.1624,125.68,125.61,3.3]
[1764601516882,111.4141,125.68,125.61,3.3]
[1764601517083,7.1634,125.66,125.61,3.3]
[1764601517287,27.62,125.69,125.61,3.3]
[1764601517587,0.05588852,125.66,125.64,0.04904095]
[1764601517783,0.05588852,125.66,125.64,3.34904095]
[1764601518389,0.05588852,125.66,125.64,10.51334095]
[1764601518588,0.05588852,125.66,125.65,3.3]
[1764601518987,7.1605,125.72,125.66,3.3]
[1764601519490,7.1605,125.72,125.67,10.4628]
[1764601519878,7.1605,125.72,125.67,3.3]
[1764601520090,0.06111529,125.71,125.68,0.05965442]
[1764601520488,0.06111529,125.71,125.68,3.33965442]
[1764601520880,0.06111529,125.71,125.68,0.05965442]
[1764601521085,0.06111529,125.71,125.68,3.33965442]
[1764601521591,0.06111529,125.71,125.68,0.05965442]
[1764601521894,7.1611,125.7,125.68,0.05965442]
[1764601522887,7.1611,125.7,125.68,3.33965442]
[1764601523392,7.1611,125.7,125.68,0.05965442]
[1764601523793,7.1611,125.7,125.68,3.33965442]
[1764601525084,0.06111529,125.71,125.68,3.33965442]
[1764601525582,0.06111529,125.71,125.68,10.50145442]
[1764601525894,111.3395,125.77,125.69,3.28]
[1764601526088,111.3202,125.79,125.69,3.28]
[1764601526292,7.1586,125.75,125.7,7.1609]
[1764601526488,8.43784518,125.75,125.67,9.75990814]
[1764601526688,8.43784518,125.75,125.68,3.28]
[1764601526890,0.05415065,125.73,125.7,0.05269738]
[1764601527686,0.05415065,125.73,125.7,3.33269738]
[1764601528687,0.05415065,125.73,125.7,0.05269738]
[1764601529291,7.1603,125.72,125.7,0.05269738]
[1764601533791,0.05415065,125.73,125.7,3.43269738]
[1764601533995,27.67415065,125.73,125.7,0.05269738]
[1764601534198,27.67415065,125.73,125.7,3.43269738]
[1764601535192,27.67415065,125.73,125.7,0.05269738]
[1764601535990,111.3997,125.7,125.63,7.41366408]
[1764601536194,111.3997,125.7,125.62,9.75990814]
[1764601536195,27.62,125.69,125.62,7.41366408]
[1764601536393,111.4224,125.67,125.62,3.38]
[1764601536997,7.1641,125.65,125.63,0.05062108]
[1764601537399,0.05655369,125.66,125.63,0.05062108]
[1764601537699,0.05655369,125.66,125.63,3.43062108]
[1764601538393,7.22005369,125.66,125.63,3.43062108]
[1764601538605,8.43784518,125.65,125.63,0.00062108]
[1764601538793,111.4574,125.63,125.57,7.41366408]
[1764601539092,119.85684518,125.68,125.58,3.38]
[1764601539295,8.43784518,125.68,125.59,3.38]
[1764601539499,7.1613,125.7,125.62,3.38]
[1764601539688,7.1613,125.7,125.65,0.05271022]
[1764601539689,0.06116787,125.67,125.65,0.05271022]
[1764601539893,0.06116787,125.67,125.65,3.43271022]
[1764601540195,0.06116787,125.67,125.65,0.05271022]
[1764601540500,0.06116787,125.67,125.65,3.43271022]
[1764601541194,119.78224518,125.76,125.66,3.38]
[1764601541400,27.64,125.75,125.67,3.38]
[1764601541601,34.7986,125.75,125.68,3.38]
[1764601541799,27.64,125.77,125.7,3.38]
[1764601542199,0.05222386,125.75,125.72,3.43338306]
[1764601542401,0.05222386,125.75,125.72,0.05338306]
[1764601542705,111.40852386,125.75,125.72,0.05338306]
[1764601544389,7.1591,125.74,125.72,0.05338306]
[1764601545503,34.7991,125.74,125.72,0.05338306]
[1764601545698,0.05222386,125.75,125.72,0.05338306]
[1764601546399,7.159,125.74,125.72,0.05338306]
[1764601548198,0.05222386,125.75,125.72,3.43338306]
[1764601553305,27.62,125.81,125.72,3.43338306]
[1764601553603,27.62,125.81,125.73,3.39]
[1764601553804,111.3118,125.8,125.73,3.39]
[1764601554405,0.05854823,125.78,125.75,0.05879278]
[1764601554802,7.21554823,125.78,125.75,0.05879278]
[1764601555212,0.05854823,125.78,125.75,0.05879278]
[1764601555411,7.1573,125.77,125.75,0.05879278]
[1764601555600,0.05854823,125.78,125.75,3.44879278]
[1764601556410,0.05854823,125.78,125.75,0.05879278]
[1764601556808,0.05854823,125.78,125.75,3.44879278]
[1764601557807,0.05854823,125.78,125.75,0.05879278]
[1764601558214,7.1573,125.77,125.75,0.05879278]
[1764601558412,0.05854823,125.78,125.75,3.44879278]
[1764601560209,0.05854823,125.78,125.75,0.05879278]
[1764601560808,7.21514823,125.78,125.75,0.05879278]
[1764601561103,0.05854823,125.78,125.75,0.05879278]
[1764601561321,8.49639341,125.78,125.75,0.05879278]
[1764601562208,7.1572,125.77,125.75,0.05879278]
[1764601562413,7.1572,125.77,125.75,3.44879278]
[1764601562615,7.1572,125.77,125.75,0.05879278]
[1764601565219,0.05854823,125.78,125.75,3.44879278]
[1764601565413,118.57553675,125.85,125.75,3.44879278]
[1764601565616,27.6,125.84,125.75,3.39]
[1764601565813,27.6,125.84,125.76,3.39]
[1764601566319,111.2592,125.86,125.78,3.39]
[1764601566519,0.05014641,125.83,125.81,3.44420205]
[1764601567612,27.6,125.88,125.81,3.44420205]
[1764601568722,0.05604478,125.86,125.81,3.44420205]
[1764601568921,0.05604478,125.86,125.82,3.39]
[1764601571010,7.155,125.81,125.78,3.39]
[1764601571625,7.154,125.83,125.78,3.39]
[1764601572124,0.06060792,125.82,125.79,3.4499205]
[1764601572824,0.00060792,125.82,125.79,3.4499205]
[1764601573126,8.43784518,125.9,125.81,3.39]
[1764601573424,27.6,125.91,125.85,3.39]
[1764601573821,34.7495,125.91,125.85,3.39]
[1764601574025,0.05272972,125.89,125.87,0.05294019]
[1764601574222,0.05272972,125.89,125.87,3.44294019]
[1764601574421,7.20312972,125.89,125.87,0.05294019]
[1764601575734,111.2361,125.88,125.81,3.39]
[1764601575931,111.2295,125.89,125.81,3.39]
[1764601576527,7.1521,125.86,125.81,3.39]
[1764601576837,0.05430567,125.85,125.82,0.05649477]
[1764601577240,0.05430567,125.85,125.82,3.44649477]
[1764601579342,0.05430567,125.85,125.82,0.05649477]
[1764601580222,111.32320567,125.85,125.76,3.39]
[1764601580426,7.1544,125.82,125.77,3.28]
[1764601580926,138.8626,125.85,125.77,3.28]
[1764601581127,7.1545,125.82,125.77,3.28]
[1764601581335,0.05269824,125.81,125.78,0.05164729]
[1764601583024,7.1556,125.8,125.78,0.05164729]
[1764601583227,34.7556,125.8,125.78,0.05164729]
[1764601583933,7.1556,125.8,125.78,0.05164729]
[1764601585024,27.65269824,125.81,125.78,3.33164729]
[1764601585630,0.05269824,125.81,125.78,3.33164729]
[1764601585837,0.05269824,125.81,125.78,0.05164729]
[1764601586725,0.05269824,125.81,125.78,3.33164729]
[1764601587833,27.62,125.85,125.78,3.33164729]
[1764601588345,7.1532,125.84,125.79,3.16]
[1764601588840,0.06112451,125.83,125.81,3.16]
[1764601590741,7.1525,125.86,125.81,3.16]
[1764601591136,7.1513,125.88,125.83,3.16]
[1764601591842,0.05353996,125.87,125.85,3.16]
[1764601592842,0.05353996,125.87,125.84,0.05012886]
[1764601593139,111.30173996,125.87,125.84,0.05012886]
[1764601593333,7.1521,125.86,125.84,0.05012886]
[1764601593731,7.1521,125.86,125.84,3.21012886]
[1764601594035,7.1521,125.86,125.84,0.05012886]
[1764601594750,111.1998,125.93,125.84,3.21012886]
[1764601594939,138.7947,125.93,125.84,3.16]
[1764601595141,7.1509,125.88,125.82,7.33544138]
[1764601595446,111.2231,125.9,125.82,3.16]
[1764601595845,0.05740802,125.87,125.85,0.05459722]
[1764601597049,0.05740802,125.87,125.85,3.21459722]
[1764601598338,0.05740802,125.87,125.85,0.05459722]
[1764601599351,7.20910802,125.87,125.85,0.05459722]
[1764601599741,0.05740802,125.87,125.85,0.05459722]
[1764601600848,7.152,125.86,125.85,0.05459722]
[1764601606874,7.152,125.86,125.85,3.21459722]
[1764601607060,7.152,125.86,125.85,0.05459722]
[1764601609682,0.05740802,125.87,125.85,3.21459722]
[1764601610667,0.05740802,125.87,125.85,0.05459722]
[1764601611274,7.152,125.86,125.85,0.05459722]
[1764601611565,34.732,125.86,125.85,0.05459722]
[1764601611966,7.152,125.86,125.85,0.05459722]
[1764601612172,0.05740802,125.87,125.85,0.05459722]
[1764601613574,0.05740802,125.87,125.85,3.36459722]
[1764601614468,0.05740802,125.87,125.85,0.05459722]
[1764601614874,7.152,125.86,125.85,0.05459722]
[1764601616270,7.152,125.86,125.85,3.36459722]
[1764601616476,7.152,125.86,125.85,0.05459722]
[1764601617979,34.752,125.86,125.85,0.05459722]
[1764601620884,111.1913,125.94,125.85,3.36459722]
[1764601621073,111.1913,125.94,125.87,3.31]
[1764601621275,111.1913,125.94,125.88,3.31]
[1764601621276,27.58,125.93,125.88,3.31]
[1764601621484,7.1492,125.91,125.88,3.31]
[1764601621783,27.58,125.93,125.89,3.31]
[1764601622086,0.05424044,125.92,125.91,3.31]
[1764601622883,0.05424044,125.92,125.9,0.05538244]
[1764601623081,0.05424044,125.92,125.9,3.36538244]
[1764601623774,7.20324044,125.92,125.9,0.05538244]
[1764601625983,34.78324044,125.92,125.9,0.05538244]
[1764601626183,34.78324044,125.92,125.84,7.33544138]
[1764601626184,7.1512,125.88,125.84,7.33544138]
[1764601626391,34.7312,125.88,125.83,10.64544138]
[1764601626589,34.7312,125.88,125.83,3.31]
[1764601626791,27.58,125.88,125.83,3.31]
[1764601627286,0.05717909,125.87,125.84,0.05223761]
[1764601628485,7.20897909,125.87,125.84,0.05223761]
[1764601629395,7.20897909,125.87,125.84,3.36223761]
[1764601629779,7.20897909,125.87,125.84,0.05223761]
[1764601629980,0.05717909,125.87,125.84,3.36223761]
[1764601632084,0.05717909,125.87,125.84,0.05223761]
[1764601632085,7.152,125.86,125.84,0.05223761]
[1764601632293,34.732,125.86,125.84,0.05223761]
[1764601632685,47.92565523,125.86,125.84,0.05223761]
[1764601632994,7.1554,125.8,125.77,7.33544138]
[1764601633295,27.58,125.81,125.76,3.31]
[1764601633486,34.7353,125.81,125.76,3.31]
[1764601633886,27.58,125.81,125.76,3.31]
[1764601634088,7.156,125.79,125.77,0.05166786]
[1764601635695,27.58,125.78,125.77,0.05166786]
[1764601637494,7.21342246,125.8,125.77,3.36166786]
[1764601638395,0.05792246,125.8,125.77,3.36166786]
[1764601640289,7.21362246,125.8,125.77,3.36166786]
[1764601642199,7.1561,125.79,125.77,0.05166786]
[1764601642502,7.1561,125.79,125.77,3.18166786]
[1764601643391,7.1561,125.79,125.77,0.05166786]
[1764601645393,7.1561,125.79,125.77,3.18166786]